[Event "*** Titled Tuesday Blitz"]
[Site "Chess.com"]
[Date "2021.03.09"]
[Round "4"]
[White "eduardoperalta"]
[Black "nrvisakh"]
[Result "0-1"]
[WhiteElo "2528"]
[BlackElo "2772"]
[TimeControl "180+1"]
[EndTime "10:42:15 PST"]
[Termination "nrvisakh won by resignation"]

1. d4 {[%clk 0:03:00.9]} 1... d5 {[%clk 0:02:56.9]} 2. Nf3 {[%clk 0:02:59.2]}
2... Nf6 {[%clk 0:02:53.6]} 3. c4 {[%clk 0:02:58.5]} 3... e6 {[%clk 0:02:54]} 4.
e3 {[%clk 0:02:56.4]} 4... c5 {[%clk 0:02:50.3]} 5. Bd3 {[%clk 0:02:55.9]} 5...
cxd4 {[%clk 0:02:49.6]} 6. exd4 {[%clk 0:02:55.4]} 6... dxc4 {[%clk 0:02:48.2]}
7. Bxc4 {[%clk 0:02:54.8]} 7... Be7 {[%clk 0:02:48.5]} 8. O-O {[%clk 0:02:53.7]}
8... O-O {[%clk 0:02:48.7]} 9. Nc3 {[%clk 0:02:53.7]} 9... Nbd7 {[%clk
0:02:48.6]} 10. Re1 {[%clk 0:02:53.3]} 10... Nb6 {[%clk 0:02:47.8]} 11. Bb3
{[%clk 0:02:51.4]} 11... Bd7 {[%clk 0:02:47.1]} 12. Ne5 {[%clk 0:02:50.4]} 12...
Bc6 {[%clk 0:02:47.2]} 13. Nxc6 {[%clk 0:02:42.1]} 13... bxc6 {[%clk 0:02:46.7]}
14. Bg5 {[%clk 0:02:40.6]} 14... Nbd5 {[%clk 0:02:39.8]} 15. Qd3 {[%clk
0:02:34.6]} 15... Re8 {[%clk 0:02:29.1]} 16. Rad1 {[%clk 0:02:32.9]} 16... Rb8
{[%clk 0:02:26.7]} 17. h4 {[%clk 0:02:18.1]} 17... Qa5 {[%clk 0:01:57.6]} 18.
Bd2 {[%clk 0:02:12]} 18... Nb4 {[%clk 0:01:42.9]} 19. Qh3 {[%clk 0:02:04]} 19...
Qh5 {[%clk 0:01:39.8]} 20. Ne2 {[%clk 0:01:48.4]} 20... Nbd5 {[%clk 0:01:29.6]}
21. Nf4 {[%clk 0:01:43]} 21... Qg4 {[%clk 0:01:25.7]} 22. Qxg4 {[%clk
0:01:34.8]} 22... Nxg4 {[%clk 0:01:24.8]} 23. g3 {[%clk 0:01:34.9]} 23... Ngf6
{[%clk 0:01:17.3]} 24. Rc1 {[%clk 0:01:25.9]} 24... Bb4 {[%clk 0:01:16.6]} 25.
Bc3 {[%clk 0:01:22.5]} 25... Nxf4 {[%clk 0:01:14.9]} 26. gxf4 {[%clk 0:01:22.2]}
26... Red8 {[%clk 0:01:14.3]} 27. Kg2 {[%clk 0:01:21.3]} 27... Rb5 {[%clk
0:01:03.1]} 28. Re5 {[%clk 0:01:17.5]} 28... Bd6 {[%clk 0:00:57.6]} 29. Ba5
{[%clk 0:01:07.8]} 29... Rdb8 {[%clk 0:00:29.7]} 30. Rxc6 {[%clk 0:00:55.8]}
30... Bxe5 {[%clk 0:00:27.3]} 31. fxe5 {[%clk 0:00:52.7]} 31... Rxa5 {[%clk
0:00:23.6]} 32. exf6 {[%clk 0:00:52.7]} 32... gxf6 {[%clk 0:00:24.1]} 33. Rc7
{[%clk 0:00:51.2]} 33... Rb6 {[%clk 0:00:24.1]} 34. Kf3 {[%clk 0:00:46.9]} 34...
Kg7 {[%clk 0:00:23.5]} 35. Ke4 {[%clk 0:00:45.3]} 35... Rd6 {[%clk 0:00:23.1]}
36. f4 {[%clk 0:00:41.5]} 36... f5+ {[%clk 0:00:21.7]} 37. Ke3 {[%clk
0:00:40.5]} 37... Raa6 {[%clk 0:00:21.3]} 38. d5 {[%clk 0:00:36.1]} 38... exd5
{[%clk 0:00:20.9]} 39. Kd4 {[%clk 0:00:37]} 39... Rh6 {[%clk 0:00:15.6]} 40.
Bxd5 {[%clk 0:00:36]} 40... Raf6 {[%clk 0:00:15.3]} 41. Rxa7 {[%clk 0:00:32.7]}
41... Rxh4 {[%clk 0:00:15.7]} 42. Ke5 {[%clk 0:00:32]} 42... Rh2 {[%clk
0:00:15.5]} 43. b4 {[%clk 0:00:30.8]} 43... Re2+ {[%clk 0:00:15.3]} 44. Kd4
{[%clk 0:00:31.2]} 44... h5 {[%clk 0:00:14.9]} 45. b5 {[%clk 0:00:31.1]} 45...
h4 {[%clk 0:00:15.2]} 46. a4 {[%clk 0:00:30.7]} 46... h3 {[%clk 0:00:15.3]} 47.
a5 {[%clk 0:00:30.8]} 47... Rd2+ {[%clk 0:00:15.6]} 48. Kc5 {[%clk 0:00:30.2]}
48... Rxd5+ {[%clk 0:00:16.1]} 49. Kxd5 {[%clk 0:00:30.6]} 49... h2 {[%clk
0:00:17]} 50. b6 {[%clk 0:00:27.6]} 50... h1=Q+ {[%clk 0:00:16]} 51. Kc5 {[%clk
0:00:28.5]} 51... Rc6+ {[%clk 0:00:14.7]} 52. Kb5 {[%clk 0:00:28.7]} 52... Qd5+
{[%clk 0:00:15]} 53. Ka6 {[%clk 0:00:28.7]} 53... Rc5 {[%clk 0:00:15.4]} 0-1

[Event "*** Titled Tuesday Blitz"]
[Site "Chess.com"]
[Date "2021.03.09"]
[Round "4"]
[White "profofchess"]
[Black "NikolaGry"]
[Result "0-1"]
[WhiteElo "2496"]
[BlackElo "2666"]
[TimeControl "180+1"]
[EndTime "10:42:15 PST"]
[Termination "NikolaGry won on time"]

1. e4 {[%clk 0:03:00.9]} 1... d5 {[%clk 0:02:58.3]} 2. exd5 {[%clk 0:02:57.9]}
2... Nf6 {[%clk 0:02:58.3]} 3. Bb5+ {[%clk 0:02:56.8]} 3... Bd7 {[%clk
0:02:57.9]} 4. Be2 {[%clk 0:02:56.9]} 4... Nxd5 {[%clk 0:02:57.4]} 5. d4 {[%clk
0:02:56.7]} 5... Bf5 {[%clk 0:02:57.5]} 6. a3 {[%clk 0:02:56.8]} 6... e6 {[%clk
0:02:57.4]} 7. c4 {[%clk 0:02:56.9]} 7... Nb6 {[%clk 0:02:53.4]} 8. Nc3 {[%clk
0:02:54.8]} 8... Be7 {[%clk 0:02:51.1]} 9. Nf3 {[%clk 0:02:54.5]} 9... a5 {[%clk
0:02:51.1]} 10. b3 {[%clk 0:02:44.4]} 10... O-O {[%clk 0:02:50.4]} 11. Bb2
{[%clk 0:02:43.7]} 11... Bf6 {[%clk 0:02:48.3]} 12. h3 {[%clk 0:02:40.6]} 12...
Nc6 {[%clk 0:02:44.4]} 13. Nb5 {[%clk 0:02:35]} 13... Qe7 {[%clk 0:02:33.8]} 14.
O-O {[%clk 0:02:15]} 14... Rad8 {[%clk 0:02:17.2]} 15. Qd2 {[%clk 0:02:08.2]}
15... Be4 {[%clk 0:01:56.2]} 16. Qf4 {[%clk 0:01:27]} 16... Bxf3 {[%clk
0:01:46.9]} 17. Bxf3 {[%clk 0:01:27]} 17... a4 {[%clk 0:01:25.9]} 18. Bxc6
{[%clk 0:00:43]} 18... bxc6 {[%clk 0:01:23.6]} 19. Na7 {[%clk 0:00:43.6]} 19...
axb3 {[%clk 0:00:58.6]} 20. Nxc6 {[%clk 0:00:42.6]} 20... Qd6 {[%clk 0:00:57.4]}
21. Qxd6 {[%clk 0:00:38.7]} 21... Rxd6 {[%clk 0:00:56.6]} 22. c5 {[%clk
0:00:38.2]} 22... Rxc6 {[%clk 0:00:55.9]} 23. cxb6 {[%clk 0:00:38.4]} 23... cxb6
{[%clk 0:00:52.2]} 24. a4 {[%clk 0:00:28.2]} 24... Rd8 {[%clk 0:00:44.2]} 25.
Ra3 {[%clk 0:00:27.1]} 25... Bxd4 {[%clk 0:00:36.9]} 26. Rxb3 {[%clk 0:00:17.7]}
26... h6 {[%clk 0:00:28.1]} 27. Bxd4 {[%clk 0:00:16]} 27... Rxd4 {[%clk
0:00:27]} 28. Rfb1 {[%clk 0:00:16.7]} 28... Rdd6 {[%clk 0:00:18.1]} 29. Rb5
{[%clk 0:00:14.6]} 29... g5 {[%clk 0:00:16.6]} 30. a5 {[%clk 0:00:14.1]} 30...
bxa5 {[%clk 0:00:16.4]} 31. Rxa5 {[%clk 0:00:15]} 31... Rd7 {[%clk 0:00:14.3]}
32. Ra2 {[%clk 0:00:14.7]} 32... Kg7 {[%clk 0:00:13.8]} 33. Rb5 {[%clk
0:00:14.1]} 33... Rcd6 {[%clk 0:00:13.7]} 34. Kh2 {[%clk 0:00:14.1]} 34... Rd2
{[%clk 0:00:13.3]} 35. Rxd2 {[%clk 0:00:13.8]} 35... Rxd2 {[%clk 0:00:13.3]} 36.
f3 {[%clk 0:00:11.7]} 36... Kg6 {[%clk 0:00:11.7]} 37. Kg3 {[%clk 0:00:10.5]}
37... h5 {[%clk 0:00:11.2]} 38. h4 {[%clk 0:00:09.6]} 38... gxh4+ {[%clk
0:00:09.9]} 39. Kh3 {[%clk 0:00:10.1]} 39... f6 {[%clk 0:00:06.3]} 40. Rb4
{[%clk 0:00:10.1]} 40... Kg5 {[%clk 0:00:03.9]} 41. Rb5+ {[%clk 0:00:06.6]}
41... e5 {[%clk 0:00:03.8]} 42. Rb8 {[%clk 0:00:06.4]} 42... Rd1 {[%clk
0:00:03.7]} 43. Rg8+ {[%clk 0:00:03.2]} 43... Kf4 {[%clk 0:00:03.6]} 44. Kh2
{[%clk 0:00:03.6]} 44... h3 {[%clk 0:00:03.8]} 0-1

[Event "*** Titled Tuesday Blitz"]
[Site "Chess.com"]
[Date "2021.03.09"]
[Round "4"]
[White "Deepweb2020"]
[Black "Fore_Man"]
[Result "1-0"]
[WhiteElo "2468"]
[BlackElo "2269"]
[TimeControl "180+1"]
[EndTime "10:42:15 PST"]
[Termination "Deepweb2020 won by resignation"]

1. d4 {[%clk 0:03:00.8]} 1... e6 {[%clk 0:02:56.1]} 2. c4 {[%clk 0:03:00]} 2...
Nf6 {[%clk 0:02:54.5]} 3. g3 {[%clk 0:02:59.6]} 3... d5 {[%clk 0:02:53.6]} 4.
Nf3 {[%clk 0:02:59.2]} 4... Be7 {[%clk 0:02:52.9]} 5. Bg2 {[%clk 0:03:00.1]}
5... O-O {[%clk 0:02:53.1]} 6. O-O {[%clk 0:03:01]} 6... c6 {[%clk 0:02:53.6]}
7. Qc2 {[%clk 0:02:58.8]} 7... b6 {[%clk 0:02:51.2]} 8. Nbd2 {[%clk 0:02:57.9]}
8... Bb7 {[%clk 0:02:50.9]} 9. e4 {[%clk 0:02:57.9]} 9... Na6 {[%clk 0:02:51.4]}
10. a3 {[%clk 0:02:51.1]} 10... c5 {[%clk 0:02:49]} 11. exd5 {[%clk 0:02:48.2]}
11... exd5 {[%clk 0:02:47.7]} 12. Rd1 {[%clk 0:02:48.8]} 12... Rc8 {[%clk
0:02:24.1]} 13. dxc5 {[%clk 0:02:45.4]} 13... Nxc5 {[%clk 0:02:14.3]} 14. b4
{[%clk 0:02:42.2]} 14... Ne6 {[%clk 0:02:06.7]} 15. Ne5 {[%clk 0:02:22.3]} 15...
Qc7 {[%clk 0:01:53.8]} 16. Bb2 {[%clk 0:02:11.6]} 16... dxc4 {[%clk 0:01:53.2]}
17. Ndf3 {[%clk 0:01:57.4]} 17... c3 {[%clk 0:01:35.3]} 18. Bc1 {[%clk
0:01:39.1]} 18... Be4 {[%clk 0:01:30.6]} 19. Qe2 {[%clk 0:01:34]} 19... Rfd8
{[%clk 0:01:18.1]} 20. Re1 {[%clk 0:01:31.9]} 20... Nd4 {[%clk 0:01:00.5]} 21.
Nxd4 {[%clk 0:01:26]} 21... Rxd4 {[%clk 0:01:01.4]} 22. Nf3 {[%clk 0:01:12.8]}
22... Rd7 {[%clk 0:00:20.5]} 23. Bf4 {[%clk 0:01:08]} 23... Qb7 {[%clk
0:00:18.6]} 24. Rac1 {[%clk 0:01:01.1]} 24... c2 {[%clk 0:00:18.3]} 25. Nh4
{[%clk 0:00:54.7]} 25... Bxg2 {[%clk 0:00:17.8]} 26. Nxg2 {[%clk 0:00:55.6]}
26... h6 {[%clk 0:00:16.6]} 27. Rxc2 {[%clk 0:00:52.7]} 27... Rxc2 {[%clk
0:00:14.7]} 28. Qxc2 {[%clk 0:00:53.6]} 28... Bf8 {[%clk 0:00:13]} 29. Ne3
{[%clk 0:00:48.6]} 29... Qf3 {[%clk 0:00:12.6]} 30. Be5 {[%clk 0:00:39]} 30...
Ne4 {[%clk 0:00:11.7]} 31. Nc4 {[%clk 0:00:32.2]} 31... b5 {[%clk 0:00:08.3]}
32. Qxe4 {[%clk 0:00:30.1]} 32... Qxe4 {[%clk 0:00:06.9]} 33. Rxe4 {[%clk
0:00:30.4]} 33... bxc4 {[%clk 0:00:07.5]} 34. Rxc4 {[%clk 0:00:30.9]} 34... Rd1+
{[%clk 0:00:07.2]} 35. Kg2 {[%clk 0:00:30.9]} 35... Rd3 {[%clk 0:00:08.1]} 36.
Rc8 {[%clk 0:00:23.9]} 36... f6 {[%clk 0:00:06.3]} 37. Bf4 {[%clk 0:00:19.1]}
37... Kf7 {[%clk 0:00:06.3]} 38. Rc7+ {[%clk 0:00:19.3]} 38... Kg6 {[%clk
0:00:06]} 39. Rxa7 {[%clk 0:00:18.9]} 39... Rb3 {[%clk 0:00:05.9]} 40. Be3
{[%clk 0:00:17.9]} 40... Bd6 {[%clk 0:00:04.8]} 41. Bc5 {[%clk 0:00:17.6]} 41...
Be5 {[%clk 0:00:05.3]} 42. a4 {[%clk 0:00:15.8]} 42... Bc3 {[%clk 0:00:04.2]}
43. a5 {[%clk 0:00:15.3]} 43... Bxb4 {[%clk 0:00:03.8]} 44. Rb7 {[%clk
0:00:15.3]} 44... Bxc5 {[%clk 0:00:02.2]} 45. Rxb3 {[%clk 0:00:15.4]} 1-0

[Event "*** Titled Tuesday Blitz"]
[Site "Chess.com"]
[Date "2021.03.09"]
[Round "4"]
[White "SARGISMV"]
[Black "Kaua18"]
[Result "1-0"]
[WhiteElo "2476"]
[BlackElo "2296"]
[TimeControl "180+1"]
[EndTime "10:42:16 PST"]
[Termination "SARGISMV won on time"]

1. d4 {[%clk 0:03:00.9]} 1... Nf6 {[%clk 0:03:00.2]} 2. c4 {[%clk 0:03:00.2]}
2... e6 {[%clk 0:03:00.7]} 3. Nc3 {[%clk 0:03:00.1]} 3... Bb4 {[%clk 0:03:01.1]}
4. e3 {[%clk 0:03:00]} 4... O-O {[%clk 0:03:01.6]} 5. Ne2 {[%clk 0:02:59.7]}
5... d5 {[%clk 0:03:02.1]} 6. a3 {[%clk 0:02:59.7]} 6... Be7 {[%clk 0:03:00.9]}
7. Nf4 {[%clk 0:02:59]} 7... c6 {[%clk 0:02:58.3]} 8. Bd3 {[%clk 0:02:52.1]}
8... dxc4 {[%clk 0:02:57.7]} 9. Bxc4 {[%clk 0:02:52.2]} 9... a5 {[%clk
0:02:57.3]} 10. O-O {[%clk 0:02:51.8]} 10... b5 {[%clk 0:02:56.9]} 11. Ba2
{[%clk 0:02:51.3]} 11... Nbd7 {[%clk 0:02:56.2]} 12. Qf3 {[%clk 0:02:40.7]}
12... Qb6 {[%clk 0:02:53.4]} 13. Rd1 {[%clk 0:02:18.8]} 13... Bb7 {[%clk
0:02:53.1]} 14. e4 {[%clk 0:02:13.8]} 14... e5 {[%clk 0:02:44.3]} 15. dxe5
{[%clk 0:02:00.8]} 15... Nxe5 {[%clk 0:02:45.2]} 16. Qe2 {[%clk 0:01:41]} 16...
Ba6 {[%clk 0:02:36]} 17. Be3 {[%clk 0:01:38]} 17... Bc5 {[%clk 0:02:35.9]} 18.
Bxc5 {[%clk 0:01:30.7]} 18... Qxc5 {[%clk 0:02:36.8]} 19. Qe1 {[%clk 0:01:14.1]}
19... Rfd8 {[%clk 0:02:14.4]} 20. h3 {[%clk 0:00:59.2]} 20... Qe7 {[%clk
0:02:07.3]} 21. Rxd8+ {[%clk 0:00:51.3]} 21... Rxd8 {[%clk 0:02:06.9]} 22. Rd1
{[%clk 0:00:49]} 22... Nfd7 {[%clk 0:01:59.1]} 23. Qe3 {[%clk 0:00:43.5]} 23...
Ra8 {[%clk 0:01:28.7]} 24. Nce2 {[%clk 0:00:38.5]} 24... Ng6 {[%clk 0:01:18]}
25. Ng3 {[%clk 0:00:33.7]} 25... Nxf4 {[%clk 0:01:07.8]} 26. Qxf4 {[%clk
0:00:34.6]} 26... Qf6 {[%clk 0:01:08.1]} 27. Nf5 {[%clk 0:00:31.5]} 27... Nf8
{[%clk 0:00:48.5]} 28. Nh6+ {[%clk 0:00:20.7]} 28... Kh8 {[%clk 0:00:34]} 29.
Nxf7+ {[%clk 0:00:20.8]} 29... Kg8 {[%clk 0:00:33.5]} 30. Ng5+ {[%clk
0:00:20.6]} 30... Kh8 {[%clk 0:00:32.4]} 31. Nf7+ {[%clk 0:00:20.5]} 31... Kg8
{[%clk 0:00:31.8]} 32. Qc7 {[%clk 0:00:21.1]} 32... Ne6 {[%clk 0:00:12.4]} 33.
Nd8 {[%clk 0:00:16.1]} 33... Bc8 {[%clk 0:00:08.4]} 34. Nxe6 {[%clk 0:00:14.2]}
34... Bxe6 {[%clk 0:00:09.3]} 35. Qxc6 {[%clk 0:00:13.4]} 35... Bxa2 {[%clk
0:00:01.7]} 36. Qxa8+ {[%clk 0:00:12.7]} 36... Kf7 {[%clk 0:00:02.2]} 37. Qa7+
{[%clk 0:00:13]} 37... Kg6 {[%clk 0:00:02.5]} 38. Qc7 {[%clk 0:00:13]} 38... h6
{[%clk 0:00:01.7]} 39. Rd6 {[%clk 0:00:12.9]} 39... Be6 {[%clk 0:00:02.4]} 40.
Qc6 {[%clk 0:00:13.1]} 40... Kf7 {[%clk 0:00:02.6]} 41. Qc7+ {[%clk 0:00:13.1]}
41... Kg6 {[%clk 0:00:02.1]} 42. Qc5 {[%clk 0:00:13.6]} 42... Qxb2 {[%clk
0:00:01.2]} 43. Rxe6+ {[%clk 0:00:13.4]} 43... Kh7 {[%clk 0:00:01.4]} 44. Qf5+
{[%clk 0:00:14]} 44... Kg8 {[%clk 0:00:01.2]} 45. Qg6 {[%clk 0:00:13.7]} 1-0

[Event "*** Titled Tuesday Blitz"]
[Site "Chess.com"]
[Date "2021.03.09"]
[Round "4"]
[White "Dedic8"]
[Black "AliKa2810"]
[Result "0-1"]
[WhiteElo "2798"]
[BlackElo "2552"]
[TimeControl "180+1"]
[EndTime "10:42:17 PST"]
[Termination "AliKa2810 won on time"]

1. e4 {[%clk 0:03:00.9]} 1... c6 {[%clk 0:03:00.2]} 2. d4 {[%clk 0:03:00]} 2...
d5 {[%clk 0:03:00.9]} 3. Nc3 {[%clk 0:03:00.9]} 3... dxe4 {[%clk 0:03:00.7]} 4.
Nxe4 {[%clk 0:03:01.8]} 4... Nd7 {[%clk 0:03:01.2]} 5. Ng5 {[%clk 0:03:01]} 5...
Ngf6 {[%clk 0:02:59.6]} 6. N1f3 {[%clk 0:02:48.6]} 6... h6 {[%clk 0:02:43]} 7.
Nh3 {[%clk 0:02:48.2]} 7... e6 {[%clk 0:02:41.9]} 8. Bd3 {[%clk 0:02:47.6]} 8...
Bd6 {[%clk 0:02:40.8]} 9. Nf4 {[%clk 0:02:43.4]} 9... Qc7 {[%clk 0:02:39.5]} 10.
g3 {[%clk 0:02:43.3]} 10... b6 {[%clk 0:02:35.9]} 11. Qe2 {[%clk 0:02:31.5]}
11... Bb7 {[%clk 0:02:35.3]} 12. Bd2 {[%clk 0:02:25.7]} 12... O-O-O {[%clk
0:02:31.5]} 13. O-O-O {[%clk 0:02:25.1]} 13... g5 {[%clk 0:02:27.7]} 14. Ng2
{[%clk 0:02:23.5]} 14... c5 {[%clk 0:02:26]} 15. Ba6 {[%clk 0:02:18.6]} 15...
Bxa6 {[%clk 0:02:10.9]} 16. Qxa6+ {[%clk 0:02:18.1]} 16... Qb7 {[%clk
0:02:11.6]} 17. Qxb7+ {[%clk 0:02:06.9]} 17... Kxb7 {[%clk 0:02:12.5]} 18. Be3
{[%clk 0:01:53.9]} 18... Nd5 {[%clk 0:01:57.7]} 19. c4 {[%clk 0:01:42.2]} 19...
Nxe3 {[%clk 0:01:53.1]} 20. Nxe3 {[%clk 0:01:43.1]} 20... cxd4 {[%clk
0:01:48.9]} 21. Nxd4 {[%clk 0:01:44]} 21... Ne5 {[%clk 0:01:39.4]} 22. Nb3
{[%clk 0:01:11.6]} 22... Be7 {[%clk 0:01:28.4]} 23. Kc2 {[%clk 0:01:01.6]} 23...
Nf3 {[%clk 0:01:23.5]} 24. h3 {[%clk 0:00:52.4]} 24... f5 {[%clk 0:01:21.6]} 25.
Rd3 {[%clk 0:00:44.1]} 25... Bb4 {[%clk 0:01:08.5]} 26. Rdd1 {[%clk 0:00:35.3]}
26... Kc7 {[%clk 0:00:45.9]} 27. a3 {[%clk 0:00:35]} 27... Be7 {[%clk 0:00:45]}
28. Rxd8 {[%clk 0:00:25]} 28... Rxd8 {[%clk 0:00:44.4]} 29. Rd1 {[%clk
0:00:25.1]} 29... Rxd1 {[%clk 0:00:40.6]} 30. Kxd1 {[%clk 0:00:24.3]} 30... Bf6
{[%clk 0:00:41.2]} 31. Ke2 {[%clk 0:00:17.9]} 31... Ng1+ {[%clk 0:00:39.2]} 32.
Kf1 {[%clk 0:00:17.9]} 32... Nxh3 {[%clk 0:00:39.8]} 33. Nd1 {[%clk 0:00:17.3]}
33... g4 {[%clk 0:00:36.6]} 34. Nc1 {[%clk 0:00:16.3]} 34... Ng5 {[%clk
0:00:33.6]} 35. Nd3 {[%clk 0:00:16.3]} 35... Ne4 {[%clk 0:00:30.3]} 36. Ke2
{[%clk 0:00:14.3]} 36... Kd6 {[%clk 0:00:25.1]} 37. b4 {[%clk 0:00:14.5]} 37...
Nc3+ {[%clk 0:00:22.8]} 38. Nxc3 {[%clk 0:00:14.5]} 38... Bxc3 {[%clk
0:00:23.7]} 39. Ke3 {[%clk 0:00:15.2]} 39... e5 {[%clk 0:00:22.9]} 40. Ke2
{[%clk 0:00:07.7]} 40... Bd4 {[%clk 0:00:23]} 41. a4 {[%clk 0:00:05.8]} 41... a5
{[%clk 0:00:19.8]} 42. bxa5 {[%clk 0:00:05.5]} 42... bxa5 {[%clk 0:00:20.7]} 43.
Ke1 {[%clk 0:00:05]} 43... h5 {[%clk 0:00:20.4]} 44. Ke2 {[%clk 0:00:05]} 44...
Bc3 {[%clk 0:00:20.1]} 45. Kd1 {[%clk 0:00:03.7]} 45... f4 {[%clk 0:00:16]} 46.
gxf4 {[%clk 0:00:02.9]} 46... e4 {[%clk 0:00:16.4]} 47. Ne1 {[%clk 0:00:01.5]}
47... h4 {[%clk 0:00:12.5]} 0-1

[Event "*** Titled Tuesday Blitz"]
[Site "Chess.com"]
[Date "2021.03.09"]
[Round "4"]
[White "Jan1401"]
[Black "13MiRacLe"]
[Result "0-1"]
[WhiteElo "2417"]
[BlackElo "2689"]
[TimeControl "180+1"]
[EndTime "10:42:17 PST"]
[Termination "13MiRacLe won by resignation"]

1. e4 {[%clk 0:03:00.9]} 1... e5 {[%clk 0:02:59.8]} 2. f4 {[%clk 0:03:00.2]}
2... exf4 {[%clk 0:02:59.8]} 3. Bc4 {[%clk 0:02:59.6]} 3... Nf6 {[%clk
0:02:59.8]} 4. Nc3 {[%clk 0:02:59.1]} 4... c6 {[%clk 0:02:59.9]} 5. d4 {[%clk
0:02:57.9]} 5... Bb4 {[%clk 0:02:57.5]} 6. Ne2 {[%clk 0:02:51.1]} 6... Nxe4
{[%clk 0:02:45.8]} 7. O-O {[%clk 0:02:41.4]} 7... d5 {[%clk 0:02:15.8]} 8. Nxe4
{[%clk 0:02:30.8]} 8... dxc4 {[%clk 0:02:16]} 9. Bxf4 {[%clk 0:02:23.6]} 9...
O-O {[%clk 0:02:15]} 10. c3 {[%clk 0:02:19.4]} 10... Be7 {[%clk 0:02:09.4]} 11.
N2g3 {[%clk 0:02:15.7]} 11... Qd5 {[%clk 0:02:04.2]} 12. Qd2 {[%clk 0:01:43.2]}
12... Na6 {[%clk 0:01:47.9]} 13. Rae1 {[%clk 0:01:42]} 13... Be6 {[%clk
0:01:47.8]} 14. Ng5 {[%clk 0:01:34.3]} 14... Bxg5 {[%clk 0:01:47.4]} 15. Bxg5
{[%clk 0:01:33.7]} 15... f6 {[%clk 0:01:28]} 16. Bf4 {[%clk 0:01:10.9]} 16...
Rae8 {[%clk 0:01:27.2]} 17. Ne4 {[%clk 0:01:08.2]} 17... Rd8 {[%clk 0:00:36.8]}
18. Qf2 {[%clk 0:01:04.5]} 18... b6 {[%clk 0:00:26.9]} 19. Qg3 {[%clk 0:01:04]}
19... Kh8 {[%clk 0:00:27.3]} 20. Re2 {[%clk 0:00:50.2]} 20... Bf5 {[%clk
0:00:25.6]} 21. Rfe1 {[%clk 0:00:43.5]} 21... c5 {[%clk 0:00:25.9]} 22. Nd6
{[%clk 0:00:26.7]} 22... Bd3 {[%clk 0:00:22.7]} 23. Re7 {[%clk 0:00:26.6]} 23...
Bg6 {[%clk 0:00:19.5]} 24. h4 {[%clk 0:00:16.8]} 24... cxd4 {[%clk 0:00:19.6]}
25. cxd4 {[%clk 0:00:16.2]} 25... Qxd4+ {[%clk 0:00:19.3]} 26. Kh2 {[%clk
0:00:16.8]} 26... Qd5 {[%clk 0:00:19]} 27. Qg4 {[%clk 0:00:15]} 27... Nc5 {[%clk
0:00:18.4]} 28. h5 {[%clk 0:00:14.1]} 28... Qxh5+ {[%clk 0:00:17.5]} 29. Qxh5
{[%clk 0:00:14.3]} 29... Bxh5 {[%clk 0:00:18.4]} 30. Nf5 {[%clk 0:00:14.3]}
30... Nd3 {[%clk 0:00:17.3]} 31. Nxg7 {[%clk 0:00:13.5]} 31... Nxf4 {[%clk
0:00:16.3]} 32. Nf5 {[%clk 0:00:13.3]} 32... Rde8 {[%clk 0:00:14.6]} 33. Rxe8
{[%clk 0:00:13]} 33... Rxe8 {[%clk 0:00:14.9]} 34. Rf1 {[%clk 0:00:13.1]} 34...
Nd3 {[%clk 0:00:13.9]} 35. Nd6 {[%clk 0:00:10.6]} 35... Re6 {[%clk 0:00:13.2]}
36. Nxc4 {[%clk 0:00:10]} 36... Bg6 {[%clk 0:00:11.9]} 37. b3 {[%clk 0:00:10.2]}
37... Nc5 {[%clk 0:00:11.8]} 38. Rd1 {[%clk 0:00:10.3]} 38... Kg7 {[%clk
0:00:11.6]} 39. Rd8 {[%clk 0:00:10.1]} 39... Re7 {[%clk 0:00:11.7]} 40. Nd6
{[%clk 0:00:09.5]} 40... Rd7 {[%clk 0:00:10.2]} 41. Ne8+ {[%clk 0:00:08.1]}
41... Bxe8 {[%clk 0:00:07.5]} 42. Rxe8 {[%clk 0:00:08.1]} 42... Nd3 {[%clk
0:00:07.4]} 43. Re2 {[%clk 0:00:07.7]} 43... Nb4 {[%clk 0:00:07.7]} 44. Kg3
{[%clk 0:00:06.7]} 44... a5 {[%clk 0:00:08.3]} 45. Kf2 {[%clk 0:00:07]} 45...
Rc7 {[%clk 0:00:08.3]} 46. Rd2 {[%clk 0:00:07]} 46... Rc2 {[%clk 0:00:08.3]} 47.
Ke3 {[%clk 0:00:07.7]} 47... Rxd2 {[%clk 0:00:08.4]} 48. Kxd2 {[%clk 0:00:08.3]}
48... Nxa2 {[%clk 0:00:09.3]} 0-1